fUST/lending_fUST_20241128
["ID","MTS","AMOUNT","RATE_DAILY","PERIOD"]
[343582505,1732732248523,-162.31011447,0.00031161,7]
[343582507,1732732248533,-162.31,0.00031161,7]
[343582509,1732732248543,-666.0,0.00031161,2]
[343582511,1732732248553,-10968.93523482,0.00031162,2]
[343582513,1732732248562,-586.72311683,0.00031162,2]
[343582515,1732732248572,-1924.30759894,0.00031162,2]
[343582517,1732732248581,-1000.0,0.00031183,2]
[343582519,1732732248590,-1000.0,0.00031197,2]
[343582521,1732732248600,-300.0,0.000312,4]
[343582523,1732732248609,-1009.30388336,0.00031204,4]
[343582525,1732732248618,-151.0,0.00031252,7]
[343582527,1732732248628,-151.216463,0.00031252,7]
[343582529,1732732248637,-151.0,0.00031252,7]
[343582530,1732732248646,-151.0,0.00031252,7]
[343582531,1732732248655,-151.0,0.00031252,7]
[343582532,1732732248664,-151.0,0.00031252,7]
[343582534,1732732248674,-151.0,0.00031252,7]
[343582536,1732732248683,-151.0,0.00031252,7]
[343582537,1732732248693,-164.429,0.00031252,7]
[343582539,1732732248702,-151.0,0.00031252,7]
[343582540,1732732248713,-151.0,0.00031252,7]
[343582541,1732732248722,-151.0,0.00031252,7]
[343582542,1732732248731,-151.0,0.00031252,7]
[343582543,1732732248741,-151.0,0.00031252,7]
[343582544,1732732248750,-151.0,0.00031252,7]
[343582545,1732732248759,-151.0,0.00031252,7]
[343582546,1732732248772,-151.0,0.00031252,7]
[343582548,1732732248781,-236.131432,0.00031252,7]
[343582549,1732732248790,-151.0,0.00031258,7]
[343582550,1732732248799,-151.0,0.00031258,7]
[343582551,1732732248809,-151.0,0.00031258,7]
[343582552,1732732248818,-151.0,0.00031258,7]
[343582553,1732732248828,-166.337466,0.00031258,7]
[343582554,1732732248837,-185.393897,0.0003126,7]
[343582555,1732732248848,-151.0,0.0003126,7]
[343582556,1732732248857,-151.0,0.0003126,7]
[343582557,1732732248867,-151.0,0.0003126,7]
[343582558,1732732248877,-151.0,0.0003126,7]
[343582559,1732732248886,-151.0,0.0003126,7]
[343582560,1732732248896,-151.0,0.0003126,7]
[343582561,1732732248905,-151.0,0.0003126,7]
[343582562,1732732248915,-151.0,0.0003126,7]
[343582563,1732732248924,-284.117808,0.0003126,7]
[343582564,1732732248933,-151.0,0.0003126,7]
[343582565,1732732248942,-151.0,0.0003126,7]
[343582566,1732732248952,-154.288495,0.0003126,7]
[343582567,1732732248961,-153.0,0.0003126,30]
[343582568,1732732248971,-275.042462,0.00031261,7]
[343582569,1732732248980,-275.042462,0.00031261,7]
[343582570,1732732248991,-275.042462,0.00031261,7]
[343582571,1732732249000,-275.042462,0.00031261,7]
[343582572,1732732249010,-275.042462,0.00031261,7]
[343582573,1732732249022,-275.042462,0.00031261,7]
[343582574,1732732249031,-275.042462,0.00031261,7]
[343582575,1732732249041,-275.042462,0.00031261,7]
[343582576,1732732249051,-275.042462,0.00031261,7]
[343582577,1732732249061,-275.042462,0.00031261,7]
[343582578,1732732249071,-275.042462,0.00031261,7]
[343582579,1732732249081,-275.042462,0.00031261,7]
[343582580,1732732249091,-205.149087,0.00031261,7]
[343582581,1732732249101,-275.042462,0.00031261,7]
[343582582,1732732249111,-205.149087,0.00031261,7]
[343582583,1732732249120,-275.042462,0.00031261,7]
[343582584,1732732249130,-205.149087,0.00031261,7]
[343582585,1732732249139,-275.042462,0.00031261,7]
[343582586,1732732249149,-275.042462,0.00031261,7]
[343582587,1732732249159,-205.149087,0.00031261,7]
[343582588,1732732249169,-275.042462,0.00031261,7]
[343582589,1732732249179,-205.149087,0.00031261,7]
[343582590,1732732249188,-275.042462,0.00031261,7]
[343582591,1732732249198,-205.149087,0.00031261,7]
[343582592,1732732249208,-275.042462,0.00031261,7]
[343582593,1732732249218,-205.149087,0.00031261,7]
[343582594,1732732249228,-275.042454,0.00031261,7]
[343582595,1732732249238,-205.149087,0.00031261,7]
[343582596,1732732249248,-205.149087,0.00031261,7]
[343582597,1732732249258,-205.149087,0.00031261,7]
[343582598,1732732249271,-205.149087,0.00031261,7]
[343582599,1732732249281,-205.149087,0.00031261,7]
[343582600,1732732249291,-205.149087,0.00031261,7]
[343582601,1732732249301,-205.149087,0.00031261,7]
[343582602,1732732249310,-205.149087,0.00031261,7]
[343582603,1732732249320,-205.149087,0.00031261,7]
[343582604,1732732249330,-205.149087,0.00031261,7]
[343582605,1732732249447,-205.149087,0.00031261,7]
[343582606,1732732249458,-205.149087,0.00031261,7]
[343582607,1732732249470,-205.149091,0.00031261,7]
[343582608,1732732249480,-151.0,0.00031261,7]
[343582609,1732732249490,-151.0,0.00031261,7]
[343582610,1732732249500,-151.0,0.00031261,7]
[343582612,1732732249511,-151.0,0.00031261,7]
[343582614,1732732249525,-151.0,0.00031261,7]
[343582615,1732732249535,-151.0,0.00031261,7]
[343582617,1732732249547,-151.0,0.00031261,7]
[343582619,1732732249556,-151.0,0.00031261,7]
[343582620,1732732249565,-151.0,0.00031261,7]
[343582621,1732732249574,-151.0,0.00031261,7]
[343582622,1732732249583,-223.819147,0.00031261,7]
[343582623,1732732249593,-177.604046,0.00031261,7]
[343582624,1732732249602,-177.604046,0.00031261,7]
[343582625,1732732249612,-177.604046,0.00031261,7]
[343582626,1732732249622,-177.604046,0.00031261,7]
[343582627,1732732249632,-177.604046,0.00031261,7]
[343582628,1732732249642,-177.604046,0.00031261,7]
[343582629,1732732249652,-177.604046,0.00031261,7]
[343582630,1732732249662,-177.604046,0.00031261,7]
[343582631,1732732249671,-177.604046,0.00031261,7]
[343582632,1732732249681,-177.604046,0.00031261,7]
[343582633,1732732249691,-177.604046,0.00031261,7]
[343582634,1732732249701,-177.604046,0.00031261,7]
[343582635,1732732249710,-177.604046,0.00031261,7]
[343582636,1732732249720,-177.604046,0.00031261,7]
[343582637,1732732249729,-177.604046,0.00031261,7]
[343582638,1732732249739,-177.604046,0.00031261,7]
[343582639,1732732249748,-177.604046,0.00031261,7]
[343582640,1732732249758,-177.604046,0.00031261,7]
[343582641,1732732249770,-177.604046,0.00031261,7]
[343582642,1732732249779,-177.604044,0.00031261,7]
[343582643,1732732249788,-151.0,0.00031261,7]
[343582644,1732732249798,-151.0,0.00031261,7]
[343582645,1732732249807,-151.0,0.00031261,7]
[343582646,1732732249821,-151.0,0.00031261,7]
[343582647,1732732249831,-151.0,0.00031261,7]
[343582648,1732732249840,-151.0,0.00031261,7]
[343582649,1732732249851,-151.0,0.00031261,7]
[343582651,1732732249860,-151.0,0.00031261,7]
[343582652,1732732249869,-219.285363,0.00031261,7]
[343582654,1732732249880,-1693.530337,0.00031261,7]
[343582656,1732732249891,-151.0,0.00031261,7]
[343582658,1732732249900,-151.0,0.00031261,7]
[343582660,1732732249910,-151.0,0.00031261,7]
[343582662,1732732249919,-151.0,0.00031261,7]
[343582663,1732732249928,-207.576488,0.00031261,7]
[343582665,1732732249937,-830.000522,0.00031261,7]
[343582666,1732732249947,-830.000522,0.00031261,7]
[343582667,1732732249956,-830.000522,0.00031261,7]
[343582668,1732732249965,-830.000522,0.00031261,7]
[343582669,1732732249974,-830.000522,0.00031261,7]
[343582670,1732732249984,-830.000522,0.00031261,7]
[343582671,1732732249993,-830.000522,0.00031261,7]
[343582673,1732732250003,-830.000522,0.00031261,7]
[343582675,1732732250012,-830.000522,0.00031261,7]
[343582676,1732732250026,-830.000522,0.00031261,7]
[343582677,1732732250035,-830.000522,0.00031261,7]
[343582678,1732732250044,-830.000522,0.00031261,7]
[343582679,1732732250055,-830.000522,0.00031261,7]
[343582680,1732732250065,-830.000522,0.00031261,7]
[343582681,1732732250074,-830.000522,0.00031261,7]
[343582682,1732732250083,-830.000522,0.00031261,7]
[343582683,1732732250094,-830.000522,0.00031261,7]
[343582684,1732732250103,-830.000522,0.00031261,7]
[343582685,1732732250113,-830.000522,0.00031261,7]
[343582686,1732732250122,-830.000524,0.00031261,7]
[343582687,1732732250132,-659.48268762,0.00031262,7]
[343582688,1732732250141,-659.48268762,0.00031262,7]
[343582689,1732732250151,-12846.48733514,0.00031262,10]
[343582700,1732732262838,165.595166,0.00013973,2]
[343582711,1732732845678,500.0,0.00026,60]
[343582712,1732732865187,500.0,0.000222,2]
[343582713,1732732961447,181.920951,0.00013973,2]
[343582780,1732733136114,-171.804899,0.00025937,2]
[343582781,1732733136136,-138.37575593,0.0002612,2]
[343582784,1732733234097,-2306.65373942,0.00024953,2]
[343582785,1732733234119,-300.0,0.00026118,2]
[343582786,1732733234142,-300.0,0.00026118,2]
[343582787,1732733234170,-24367.0,0.00026118,2]
[343582788,1732733234196,-24761.62424407,0.0002612,2]
[343582789,1732733234218,-291.4702871,0.00026417,2]
[343582790,1732733234240,-1886.8627497,0.00026624,2]
[343582791,1732733234265,-2170.6602967,0.00026735,2]
[343582792,1732733234286,-462.25119482,0.00027008,2]
[343582793,1732733234309,-1049.0949262,0.0002731,2]
[343582794,1732733234331,-392.92247076,0.0002782,2]
[343582795,1732733234354,-179.799,0.00027825,17]
[343582796,1732733234376,-500.0,0.00027995,3]
[343582797,1732733234398,-500.0,0.00027995,3]
[343582798,1732733234419,-385.84151749,0.00027995,3]
[343582799,1732733234440,-500.0,0.00027995,3]
[343582800,1732733234462,-500.0,0.00027995,3]
[343582801,1732733234484,-500.0,0.00027995,3]
[343582802,1732733234505,-500.0,0.00027995,3]
[343582803,1732733234526,-500.0,0.00027995,3]
[343582804,1732733234546,-500.0,0.00027995,3]
[343582805,1732733234568,-500.0,0.00027995,3]
[343582806,1732733234588,-500.0,0.00027995,3]
[343582807,1732733234610,-500.0,0.00027995,3]
[343582808,1732733234631,-5000.0,0.00028215,2]
[343582809,1732733234652,-500.0,0.00028216,3]
[343582810,1732733234673,-500.0,0.00028216,3]
[343582811,1732733234698,-227.74371162,0.00028217,2]
[343582812,1732733234718,-500.0,0.00028218,3]
[343582813,1732733234739,-500.0,0.00028218,3]
[343582814,1732733234761,-188.0,0.00028218,30]
[343582815,1732733234784,-188.0,0.00028218,30]
[343582816,1732733234806,-500.0,0.00028218,3]
[343582817,1732733234828,-500.0,0.00028218,3]
[343582818,1732733234850,-500.0,0.00028218,3]
[343582819,1732733234873,-420.0,0.00028262,2]
[343582820,1732733234896,-166.7893518,0.00028427,2]
[343582821,1732733234919,-5000.0,0.00028521,2]
[343582822,1732733234939,-420.0,0.0002873,2]
[343582823,1732733234962,-500.0,0.00029616,2]
[343582824,1732733234984,-500.0,0.00029616,3]
[343582825,1732733235006,-188.0,0.00029616,30]
[343582826,1732733235027,-314.48167756,0.00029806,2]
[343582827,1732733235051,-5000.0,0.00029828,2]
[343582828,1732733235073,-399.86,0.00029829,3]
[343582829,1732733235095,-269.4,0.00029829,10]
[343582830,1732733235118,-586.85,0.00029829,10]
[343582831,1732733235140,-489.05,0.00029829,10]
[343582832,1732733235162,-500.0,0.00029839,2]
[343582833,1732733235186,-500.0,0.00029839,2]
[343582834,1732733235210,-487.35539382,0.00029839,2]
[343582835,1732733235234,-500.0,0.00029839,2]
[343582836,1732733235257,-500.0,0.00029839,2]
[343582837,1732733235281,-163.16309996,0.00029839,2]
[343582838,1732733235305,-500.0,0.00029839,2]
[343582839,1732733235329,-206.69513764,0.00029839,2]
[343582840,1732733235352,-500.0,0.00029839,2]
[343582841,1732733235376,-500.0,0.00029839,2]
[343582842,1732733235398,-500.0,0.00029839,2]
[343582843,1732733235421,-207.18115391,0.00029839,2]
[343582844,1732733235445,-500.0,0.00029839,2]
[343582845,1732733235470,-500.0,0.00029839,2]
[343582846,1732733235493,-500.0,0.00029839,2]
[343582847,1732733235516,-500.0,0.00029839,2]
[343582848,1732733235538,-500.0,0.00029839,2]
[343582849,1732733235564,-500.0,0.00029839,2]
[343582850,1732733235587,-650.0,0.00029839,2]
[343582851,1732733235611,-500.0,0.00029839,2]
[343582852,1732733235631,-520.7019209,0.00029839,2]
[343582853,1732733235654,-1170.01715788,0.00029839,2]
[343582854,1732733241163,-3007.87739553,0.00029839,2]
[343582855,1732733252133,-271.55540333,0.0002983,10]
[343582860,1732733356114,-500.0,0.00026118,3]
[343582861,1732733356135,-500.0,0.00027995,3]
[343582862,1732733356415,383.18199992,0.00027995,3]
[343582884,1732733432118,-116.81800008,0.00027995,3]
[343582885,1732733432127,-500.0,0.00028215,3]
[343582886,1732733432136,-500.0,0.00028216,3]
[343582887,1732733432145,-500.0,0.00028216,3]
[343582888,1732733432154,-500.0,0.00028521,3]
[343582889,1732733432163,-323.91162738,0.00029816,2]
[343582890,1732733432172,-60.84037254,0.00029829,3]
[343582891,1732733432183,-339.15962746,0.00029829,3]
[343582892,1732733432193,-186.98,0.0002983,10]
[343582893,1732733432202,-300.0,0.00029838,2]
[343582894,1732733432211,-300.0,0.00029838,2]
[343582895,1732733432221,-500.0,0.00029839,3]
[343582896,1732733432230,-822.10544659,0.00029839,2]
[343582897,1732733432240,-261.94831384,0.0002984,2]
[343582898,1732733432250,-222000.0,0.0002984,2]
[343582899,1732733432259,-150.571,0.00029916,2]
[343582900,1732733432268,-531.0,0.00029916,2]
[343582901,1732733432277,-1104.0,0.00029916,2]
[343582902,1732733432287,-2377.0,0.00029916,2]
[343582903,1732733432296,-500.0,0.00029917,3]
[343582904,1732733432305,-188.0,0.00029917,30]
[343582905,1732733432315,-500.0,0.00029938,3]
[343582906,1732733432324,-188.0,0.00029938,30]
[343582907,1732733432333,-500.0,0.00029939,3]
[343582908,1732733432342,-414.04063041,0.00029939,3]
[343582909,1732733432351,-188.0,0.00029939,30]
[343582911,1732733432363,-275.48966603,0.00029939,30]
[343582913,1732733432372,-258.97319202,0.00029963,2]
[343582915,1732733432382,-222.0,0.0003,2]
[343582917,1732733432391,-151.0,0.00030014,7]
[343582918,1732733432400,-1351.99,0.000301,2]
[343582921,1732733432410,-1687.000843,0.00030137,120]
[343582922,1732733432419,-304.6760457,0.00030161,30]
[343582925,1732733432430,-151.0,0.000303,20]
[343582927,1732733432439,-151.0,0.000304,16]
[343582929,1732733432449,-151.0,0.00030437,7]
[343582931,1732733432459,-151.0,0.000305,17]
[343582933,1732733432468,-289.13,0.000306,31]
[343582935,1732733432478,-289.13,0.000306,31]
[343582937,1732733432487,-289.13,0.000306,31]
[343582939,1732733432497,-289.13,0.000306,31]
[343582941,1732733432506,-289.13,0.000306,31]
[343582943,1732733432515,-289.13,0.000306,31]
[343582945,1732733432524,-289.13,0.000306,31]
[343582947,1732733432533,-289.13,0.000306,31]
[343582949,1732733432543,-289.13,0.000306,31]
[343582951,1732733432552,-289.13,0.000306,31]
[343582953,1732733432561,-289.13,0.000306,31]
[343582955,1732733432571,-289.13,0.000306,31]
[343582957,1732733432580,-151.0,0.000307,10]
[343582959,1732733432591,-151.0,0.000308,17]
[343582961,1732733432600,-5000.0,0.00030827,30]
[343582963,1732733432612,-151.0,0.0003086,7]
[343582965,1732733432621,-500.0,0.00030986,4]
[343582967,1732733432630,-275.5,0.00031,4]
[343582969,1732733432639,-151.0,0.00031,16]
[343582983,1732733432759,-3200.0,0.00031083,2]
[343582985,1732733432773,-288.379,0.00031083,7]
[343582987,1732733432783,-151.0,0.000311,10]
[343582989,1732733432794,-251.58534208,0.00031161,2]
[343582992,1732733432804,-251.58534204,0.00031162,2]
[343582994,1732733432814,-666.0,0.00031162,2]
[343582996,1732733432824,-251.58534204,0.00031163,2]
[343582998,1732733432834,-251.58534204,0.00031163,2]
[343582999,1732733432847,-251.58534204,0.00031164,2]
[343583002,1732733432859,-150.01,0.00031196,2]
[343583004,1732733432868,-2809.30650531,0.00031196,2]
[343583006,1732733432878,-300.0,0.000312,4]
[343583008,1732733432887,-324.94453,0.00031213,30]
[343583010,1732733432897,-151.0,0.00031259,7]
[343583012,1732733432906,-151.0,0.00031259,7]
[343583014,1732733432915,-151.0,0.00031259,7]
[343583016,1732733432926,-151.0,0.00031259,7]
[343583018,1732733432936,-234.93806,0.00031259,7]
[343583020,1732733432945,-1866.206083,0.00031259,7]
[343583022,1732733432954,-1866.206083,0.00031259,7]
[343583024,1732733432964,-1866.206083,0.00031259,7]
[343583026,1732733432973,-1866.206083,0.00031259,7]
[343583028,1732733432983,-1866.206083,0.00031259,7]
[343583030,1732733432992,-1866.206083,0.00031259,7]
[343583032,1732733433001,-1866.206083,0.00031259,7]
[343583034,1732733433011,-1866.206083,0.00031259,7]
[343583036,1732733433020,-1866.206083,0.00031259,7]
[343583038,1732733433030,-1866.206083,0.00031259,7]
[343583040,1732733433039,-1866.206083,0.00031259,7]
[343583042,1732733433049,-1866.206083,0.00031259,7]
[343583044,1732733433058,-1866.206083,0.00031259,7]
[343583046,1732733433068,-1866.206083,0.00031259,7]
[343583048,1732733433077,-1866.206083,0.00031259,7]
[343583050,1732733433087,-1866.206083,0.00031259,7]
[343583052,1732733433096,-1866.206083,0.00031259,7]
[343583054,1732733433107,-1866.206083,0.00031259,7]
[343583056,1732733433116,-1866.206083,0.00031259,7]
[343583058,1732733433125,-1866.206084,0.00031259,7]
[343583060,1732733433135,-151.0,0.00031261,7]
[343583062,1732733433144,-175.158816,0.00031261,7]
[343583064,1732733433153,-151.0,0.00031261,7]
[343583066,1732733433162,-151.0,0.00031261,7]
[343583068,1732733433172,-151.0,0.00031261,7]
[343583070,1732733433183,-151.0,0.00031261,7]
[343583072,1732733433192,-151.0,0.00031261,7]
[343583074,1732733433202,-151.0,0.00031261,7]
[343583076,1732733433211,-151.0,0.00031261,7]
[343583078,1732733433220,-151.0,0.00031261,7]
[343583080,1732733433230,-206.866926,0.00031261,7]
[343583082,1732733433240,-1850.786731,0.00031261,7]
[343583084,1732733433255,-1850.786731,0.00031261,7]
[343583086,1732733433271,-1850.786731,0.00031261,7]
[343583088,1732733433280,-1850.786731,0.00031261,7]
[343583090,1732733433289,-1850.786731,0.00031261,7]
[343583092,1732733433299,-1850.786731,0.00031261,7]
[343583094,1732733433308,-1850.786731,0.00031261,7]
[343583096,1732733433318,-1850.786731,0.00031261,7]
[343583098,1732733433327,-1850.786731,0.00031261,7]
[343583100,1732733433337,-1850.786731,0.00031261,7]
[343583102,1732733433346,-1850.786731,0.00031261,7]
[343583104,1732733433358,-1850.786731,0.00031261,7]
[343583106,1732733433367,-1850.786731,0.00031261,7]
[343583108,1732733433376,-1850.786731,0.00031261,7]
[343583110,1732733433386,-1850.786731,0.00031261,7]
[343583112,1732733433395,-1850.786731,0.00031261,7]
[343583114,1732733433404,-1850.786731,0.00031261,7]
[343583116,1732733433413,-1850.786731,0.00031261,7]
[343583118,1732733433423,-1850.786731,0.00031261,7]
[343583120,1732733433432,-1850.786729,0.00031261,7]
[343583122,1732733433441,-151.0,0.00031261,7]
[343583124,1732733433451,-875.411,0.00031261,7]
[343583126,1732733433460,-875.411,0.00031261,7]
[343583128,1732733433469,-875.411,0.00031261,7]
[343583130,1732733433479,-875.411,0.00031261,7]
[343583132,1732733433488,-875.411,0.00031261,7]
[343583134,1732733433497,-875.411,0.00031261,7]
[343583136,1732733433507,-875.411,0.00031261,7]
[343583138,1732733433515,-875.411,0.00031261,7]
[343583140,1732733433525,-875.411,0.00031261,7]
[343583142,1732733433534,-875.411,0.00031261,7]
[343583144,1732733433544,-875.411,0.00031261,7]
[343583146,1732733433553,-875.411,0.00031261,7]
[343583149,1732733433562,-875.411,0.00031261,7]
[343583150,1732733433571,-875.411,0.00031261,7]
[343583153,1732733433581,-875.411,0.00031261,7]
[343583155,1732733433592,-875.411,0.00031261,7]
[343583157,1732733433601,-875.411,0.00031261,7]
[343583159,1732733433615,-875.411,0.00031261,7]
[343583161,1732733433625,-875.411,0.00031261,7]
[343583163,1732733433635,-875.411,0.00031261,7]
[343583165,1732733433645,-593.650916,0.00031261,7]
[343583166,1732733433654,-593.650916,0.00031261,7]
[343583168,1732733433664,-151.0,0.00031261,7]
[343583171,1732733433674,-151.0,0.00031261,7]
[343583172,1732733433683,-151.0,0.00031261,7]
[343583175,1732733433693,-151.0,0.00031261,7]
[343583176,1732733433702,-151.0,0.00031262,7]
[343583179,1732733433712,-151.0,0.00031262,7]
[343583180,1732733433723,-151.0,0.00031262,7]
[343583182,1732733433732,-151.0,0.00031262,7]
[343583185,1732733433741,-151.0,0.00031262,7]
[343583187,1732733433751,-152.604309,0.00031262,7]
[343583188,1732733433761,-151.0,0.00031262,7]
[343583191,1732733433770,-151.0,0.00031262,7]
[343583193,1732733433780,-151.0,0.00031262,7]
[343583194,1732733433790,-151.0,0.00031262,7]
[343583197,1732733433799,-151.0,0.00031262,7]
[343583198,1732733433808,-151.0,0.00031262,7]
[343583201,1732733433818,-243.071643,0.00031262,7]
[343583203,1732733433827,-151.0,0.00031262,7]
[343583205,1732733433837,-151.0,0.00031262,7]
[343583207,1732733433850,-489.307653,0.00031262,7]
[343583208,1732733433866,-489.307653,0.00031262,7]
[343583211,1732733433879,-245.80093644,0.00031263,2]
[343583213,1732733433892,-235.06098033,0.00031263,2]
[343583215,1732733433902,-211.86711422,0.00031263,2]
[343583217,1732733433912,-264.61422382,0.00031263,2]
[343583219,1732733433922,-500.0,0.00031263,2]
[343583221,1732733433932,-564.67239008,0.00031263,2]
[343583223,1732733433941,-500.0,0.00031264,10]
[343583225,1732733433951,-150.17,0.00031264,10]
[343583227,1732733433960,-500.0,0.00031264,11]
[343583229,1732733433969,-150.17,0.00031264,10]
[343583231,1732733433979,-150.17,0.00031264,10]
[343583233,1732733433989,-299.89991911,0.00031264,10]
[343583235,1732733433998,-500.0,0.00031264,11]
[343583237,1732733434007,-593.650916,0.00031264,7]
[343583239,1732733434018,-593.650916,0.00031264,7]
[343583241,1732733434028,-593.650916,0.00031264,7]
[343583243,1732733434037,-593.650916,0.00031264,7]
[343583245,1732733434047,-593.650916,0.00031264,7]
[343583247,1732733434057,-593.650916,0.00031264,7]
[343583249,1732733434066,-593.650916,0.00031264,7]
[343583251,1732733434076,-593.650916,0.00031264,7]
[343583253,1732733434085,-593.650916,0.00031264,7]
[343583255,1732733434095,-593.650916,0.00031264,7]
[343583257,1732733434105,-593.650916,0.00031264,7]
[343583259,1732733434115,-593.650916,0.00031264,7]
[343583261,1732733434124,-593.650916,0.00031264,7]
[343583263,1732733434133,-593.650916,0.00031264,7]
[343583265,1732733434143,-593.650916,0.00031264,7]
[343583267,1732733434153,-593.650916,0.00031264,7]
[343583269,1732733434162,-593.650916,0.00031264,7]
[343583271,1732733434171,-593.650917,0.00031264,7]
[343583273,1732733434180,-500.0,0.00031264,10]
[343583275,1732733434189,-300.25178377,0.00031264,10]
[343583277,1732733434198,-500.0,0.00031264,10]
[343583279,1732733434207,-151.0,0.00031264,7]
[343583281,1732733434217,-151.0,0.00031264,7]
[343583283,1732733434227,-151.0,0.00031264,7]
[343583285,1732733434236,-173.361491,0.00031264,7]
[343583287,1732733434245,-151.0,0.00031264,7]
[343583289,1732733434255,-151.0,0.00031264,7]
[343583291,1732733434264,-151.0,0.00031264,7]
[343583293,1732733434273,-151.0,0.00031264,7]
[343583295,1732733434282,-151.0,0.00031264,7]
[343583297,1732733434292,-300.31,0.00031264,10]
[343583299,1732733434302,-150.17,0.00031264,2]
[343583301,1732733434311,-151.0,0.00031264,7]
[343583303,1732733434321,-151.0,0.00031264,7]
[343583305,1732733434330,-500.0,0.00031264,10]
[343583307,1732733434339,-151.0,0.00031264,7]
[343583309,1732733434348,-171.280714,0.00031264,7]
[343583311,1732733434359,-500.0,0.00031264,10]
[343583313,1732733434368,-500.0,0.00031264,10]
[343583315,1732733434377,-500.0,0.00031264,10]
[343583317,1732733434387,-150.17,0.00031264,2]
[343583319,1732733434396,-150.17,0.00031264,10]
[343583321,1732733434407,-150.17,0.00031264,10]
[343583323,1732733434417,-489.307653,0.00031264,7]
[343583325,1732733434427,-489.307653,0.00031264,7]
[343583327,1732733434437,-489.307653,0.00031264,7]
[343583329,1732733434447,-489.307653,0.00031264,7]
[343583331,1732733434457,-489.307653,0.00031264,7]
[343583333,1732733434467,-489.307653,0.00031264,7]
[343583335,1732733434477,-489.307653,0.00031264,7]
[343583337,1732733434487,-489.307653,0.00031264,7]
[343583339,1732733434497,-489.307653,0.00031264,7]
[343583341,1732733434508,-489.307653,0.00031264,7]
[343583343,1732733434518,-489.307653,0.00031264,7]
[343583345,1732733434529,-151.0,0.00031264,7]
[343583347,1732733434539,-489.307653,0.00031264,7]
[343583349,1732733434549,-151.0,0.00031264,7]
[343583351,1732733434559,-489.307653,0.00031264,7]
[343583353,1732733434569,-151.0,0.00031264,7]
[343583355,1732733434578,-489.307653,0.00031264,7]
[343583357,1732733434588,-151.0,0.00031264,7]
[343583359,1732733434597,-489.307653,0.00031264,7]
[343583361,1732733434611,-151.0,0.00031264,7]
[343583363,1732733434621,-489.307653,0.00031264,7]
[343583365,1732733434630,-489.307653,0.00031264,7]
[343583367,1732733434640,-274.59904,0.00031264,7]
[343583369,1732733434650,-489.307647,0.00031264,7]
[343583371,1732733434659,-61484.96479897,0.00031264,2]
[343583373,1732733434668,-2731262.02453807,0.00031264,10]
[343583375,1732733434677,-6472141.85364108,0.00031264,10]
[343583962,1732733440644,-331.11,0.0002983,10]
[343583964,1732733440654,-324.9179,0.00031213,30]
[343583966,1732733440664,-151.0,0.00031262,7]
[343583968,1732733440673,-200.133429,0.00031264,7]
[343583970,1732733440683,-9950.33523004,0.00031264,10]
[343584111,1732733442945,-34.46451721,0.0002974,2]
[343584130,1732733445918,-83.16515569,0.0002973,10]
[343584131,1732733445932,-192.76484431,0.0002973,10]
[343584132,1732733445941,-8468.47515569,0.0002974,2]
[343584133,1732733445953,-213497.0603271,0.0002974,2]
[343584134,1732733445963,-150.06,0.00029923,2]